fUSD/lending_fUSD_20250522
["ID","MTS","AMOUNT","RATE_DAILY","PERIOD"]
[361980877,1747921845232,-421.98,0.00032876,5]
[361980878,1747921845242,-608.58,0.00032876,5]
[361980879,1747921845251,-420.0,0.00032876,5]
[361980880,1747921845261,-1199.65,0.00032876,5]
[361980881,1747921845270,-420.0,0.00032876,5]
[361980882,1747921845281,-598.23,0.00032876,5]
[361980883,1747921845291,-420.0,0.00032876,5]
[361980884,1747921845300,-420.0,0.00032876,5]
[361980885,1747921845310,-420.0,0.00032876,5]
[361980886,1747921845320,-741.55,0.00032876,5]
[361980887,1747921845329,-812.11,0.00032876,5]
[361980888,1747921845339,-420.0,0.00032876,5]
[361980889,1747921845348,-420.0,0.00032876,5]
[361980890,1747921845357,-420.0,0.00032876,5]
[361980891,1747921845367,-445.16,0.00032876,5]
[361980892,1747921845376,-420.0,0.00032876,5]
[361980893,1747921845386,-420.0,0.00032876,5]
[361980894,1747921845395,-1000.0,0.00032876,5]
[361980895,1747921845405,-420.0,0.00032876,5]
[361980896,1747921845414,-420.0,0.00032876,5]
[361980897,1747921845424,-420.0,0.00032876,5]
[361980898,1747921845434,-420.0,0.00032876,5]
[361980899,1747921845443,-377.83414735,0.00032876,5]
[361980900,1747921845453,-335.07961586,0.00032876,5]
[361980901,1747921845462,-420.0,0.00032876,5]
[361980902,1747921845472,-546.72,0.00032876,5]
[361980903,1747921845482,-420.0,0.00032876,5]
[361980904,1747921845491,-420.0,0.00032876,5]
[361980905,1747921845501,-730.3,0.00032876,5]
[361980906,1747921845511,-420.0,0.00032876,5]
[361980907,1747921845521,-420.0,0.00032876,5]
[361980908,1747921845534,-489.35,0.00032876,5]
[361980909,1747921845544,-823.35,0.00032876,5]
[361980910,1747921845553,-420.0,0.00032876,5]
[361980911,1747921845563,-420.65,0.00032876,5]
[361980912,1747921845573,-420.0,0.00032876,5]
[361980913,1747921845582,-420.0,0.00032876,5]
[361980914,1747921845592,-420.0,0.00032876,5]
[361980915,1747921845602,-420.0,0.00032876,5]
[361980916,1747921845613,-958.8,0.00032876,5]
[361980917,1747921845622,-429.01,0.00032876,5]
[361980918,1747921845632,-420.0,0.00032876,5]
[361980919,1747921845642,-420.0,0.00032876,5]
[361980920,1747921845651,-621.87,0.00032876,5]
[361980921,1747921845672,-420.0,0.00032876,5]
[361980922,1747921845681,-518.44,0.00032876,5]
[361980923,1747921845692,-667.28,0.00032876,5]
[361980924,1747921845702,-889.59,0.00032876,5]
[361980925,1747921845712,-420.0,0.00032876,5]
[361980926,1747921845724,-420.0,0.00032876,5]
[361980927,1747921845734,-420.0,0.00032876,5]
[361980956,1747921846160,-420.0,0.00032876,5]
[361980957,1747921846182,-1147.85,0.00032876,5]
[361980958,1747921846192,-686.18,0.00032876,5]
[361980959,1747921846203,-500.0,0.00032876,5]
[361980960,1747921846212,-420.0,0.00032876,5]
[361980961,1747921846222,-614.64,0.00032876,5]
[361980962,1747921846232,-420.0,0.00032876,5]
[361980963,1747921846242,-420.0,0.00032876,5]
[361980964,1747921846252,-420.0,0.00032876,5]
[361980965,1747921846262,-393.581492,0.00032876,5]
[361980966,1747921846271,-508.59,0.00032876,5]
[361980967,1747921846285,-420.0,0.00032876,5]
[361980968,1747921846294,-420.0,0.00032876,5]
[361980969,1747921846304,-420.0,0.00032876,5]
[361980970,1747921846314,-420.0,0.00032876,5]
[361980971,1747921846324,-150.850086,0.00032876,5]
[361980972,1747921846334,-242.70970345,0.00032876,5]
[361980973,1747921846344,-420.0,0.00032876,5]
[361980974,1747921846353,-790.68,0.00032876,5]
[361980975,1747921846363,-420.0,0.00032876,5]
[361980976,1747921846372,-420.0,0.00032876,5]
[361980977,1747921846383,-420.0,0.00032876,5]
[361980978,1747921846393,-420.0,0.00032876,5]
[361980979,1747921846403,-484.68,0.00032876,5]
[361980980,1747921846412,-420.0,0.00032876,5]
[361980982,1747921846422,-420.0,0.00032876,5]
[361980983,1747921846432,-420.0,0.00032876,5]
[361980984,1747921846442,-654.45,0.00032876,5]
[361980985,1747921846452,-420.0,0.00032876,5]
[361980986,1747921846461,-420.0,0.00032876,5]
[361980987,1747921846471,-420.0,0.00032876,5]
[361980988,1747921846481,-647.94,0.00032876,5]
[361980989,1747921846490,-420.0,0.00032876,5]
[361980990,1747921846499,-420.0,0.00032876,5]
[361980991,1747921846509,-420.0,0.00032876,5]
[361980992,1747921846518,-223.536136,0.00032876,5]
[361980993,1747921846529,-420.0,0.00032876,5]
[361980994,1747921846539,-420.0,0.00032876,5]
[361980995,1747921846548,-420.0,0.00032876,5]
[361980996,1747921846557,-420.0,0.00032876,5]
[361980997,1747921846567,-420.0,0.00032876,5]
[361980999,1747921846576,-420.0,0.00032876,5]
[361981001,1747921846586,-682.21,0.00032876,5]
[361981003,1747921846595,-420.0,0.00032876,5]
[361981005,1747921846605,-1000.0,0.00032876,30]
[361981008,1747921846614,-420.0,0.00032876,5]
[361981009,1747921846624,-420.0,0.00032876,5]
[361981012,1747921846634,-765.44,0.00032876,5]
[361981013,1747921846644,-1044.87,0.00032876,5]
[361981016,1747921846654,-420.0,0.00032876,5]
[361981017,1747921846666,-420.0,0.00032876,5]
[361981019,1747921846676,-420.0,0.00032876,5]
[361981021,1747921846686,-904.91,0.00032876,5]
[361981023,1747921846696,-420.0,0.00032876,5]
[361981025,1747921846706,-490.4,0.00032876,5]
[361981027,1747921846719,-420.0,0.00032876,5]
[361981029,1747921846731,-420.0,0.00032876,5]
[361981031,1747921846742,-2234.88,0.00032876,2]
[361981033,1747921846753,-420.0,0.00032876,5]
[361981035,1747921846765,-420.0,0.00032876,5]
[361981037,1747921846778,-420.0,0.00032876,5]
[361981039,1747921846789,-420.0,0.00032876,5]
[361981041,1747921846802,-151.0,0.00032876,7]
[361981042,1747921846813,-751.55,0.00032876,5]
[361981043,1747921846823,-420.0,0.00032876,5]
[361981044,1747921846833,-420.0,0.00032876,5]
[361981045,1747921846843,-420.0,0.00032876,5]
[361981046,1747921846853,-420.0,0.00032876,5]
[361981047,1747921846863,-784.48,0.00032876,5]
[361981048,1747921846874,-424.05,0.00032876,5]
[361981049,1747921846883,-536.79,0.00032876,5]
[361981050,1747921846893,-420.0,0.00032876,5]
[361981051,1747921846903,-1189.48,0.00032876,5]
[361981052,1747921846912,-420.0,0.00032876,5]
[361981053,1747921846922,-451.43,0.00032876,5]
[361981054,1747921846932,-420.0,0.00032876,5]
[361981055,1747921846943,-420.0,0.00032876,5]
[361981056,1747921846953,-1842.6,0.00032876,5]
[361981057,1747921846963,-420.0,0.00032876,5]
[361981058,1747921846972,-420.0,0.00032876,5]
[361981059,1747921846982,-420.0,0.00032876,5]
[361981060,1747921846991,-845.14,0.00032876,5]
[361981061,1747921847001,-420.0,0.00032876,5]
[361981062,1747921847011,-420.0,0.00032876,5]
[361981063,1747921847020,-736.73,0.00032876,5]
[361981064,1747921847033,-788.42,0.00032876,5]
[361981065,1747921847043,-509.6833283,0.00032876,5]
[361981066,1747921847053,-420.0,0.00032876,5]
[361981067,1747921847062,-557.55,0.00032876,5]
[361981068,1747921847072,-787.01,0.00032876,5]
[361981069,1747921847082,-439.94,0.00032876,5]
[361981070,1747921847091,-151.0,0.00032876,7]
[361981071,1747921847100,-151.0,0.00032876,7]
[361981072,1747921847110,-151.0,0.00032876,7]
[361981073,1747921847120,-420.0,0.00032876,5]
[361981074,1747921847130,-420.0,0.00032876,5]
[361981075,1747921847139,-420.0,0.00032876,5]
[361981076,1747921847148,-541.84,0.00032876,5]
[361981077,1747921847158,-705.83,0.00032876,5]
[361981078,1747921847167,-300.17263777,0.00032876,5]
[361981079,1747921847176,-928.41,0.00032876,5]
[361981080,1747921847187,-420.0,0.00032876,5]
[361981081,1747921847196,-420.0,0.00032876,5]
[361981082,1747921847205,-1049.49,0.00032876,5]
[361981083,1747921847215,-420.0,0.00032876,5]
[361981084,1747921847226,-420.0,0.00032876,5]
[361981085,1747921847235,-420.0,0.00032876,5]
[361981086,1747921847246,-420.0,0.00032876,5]
[361981087,1747921847255,-593.11,0.00032876,5]
[361981088,1747921847265,-1033.61,0.00032876,5]
[361981089,1747921847274,-420.0,0.00032876,5]
[361981090,1747921847286,-927.45,0.00032876,5]
[361981091,1747921847296,-420.0,0.00032876,5]
[361981092,1747921847305,-420.0,0.00032876,5]
[361981093,1747921847314,-1027.81,0.00032876,5]
[361981094,1747921847324,-420.0,0.00032876,5]
[361981095,1747921847334,-420.0,0.00032876,5]
[361981096,1747921847343,-420.0,0.00032876,5]
[361981097,1747921847352,-518.28409348,0.00032876,5]
[361981098,1747921847361,-1538.98,0.00032876,5]
[361981099,1747921847371,-420.0,0.00032876,5]
[361981100,1747921847380,-151.0,0.00032876,7]
[361981101,1747921847391,-420.0,0.00032876,5]
[361981102,1747921847401,-151.0,0.00032876,7]
[361981103,1747921847410,-714.66,0.00032876,5]
[361981104,1747921847419,-1183.74,0.00032876,5]
[361981105,1747921847428,-420.0,0.00032876,5]
[361981106,1747921847438,-151.0,0.00032876,7]
[361981107,1747921847448,-151.0,0.00032876,7]
[361981108,1747921847458,-151.0,0.00032876,7]
[361981109,1747921847467,-522.77028671,0.00032876,5]
[361981110,1747921847476,-420.54716305,0.00032876,5]
[361981111,1747921847500,-345.21283695,0.00032876,5]
[361981112,1747921847510,-420.0,0.00032876,5]
[361981113,1747921847519,-447.01,0.00032876,5]
[361981114,1747921847532,-544.74,0.00032876,5]
[361981115,1747921847542,-971.73,0.00032876,5]
[361981116,1747921847551,-1005.43,0.00032876,5]
[361981117,1747921847561,-677.62,0.00032876,5]
[361981118,1747921847571,-420.0,0.00032876,5]
[361981119,1747921847580,-420.0,0.00032876,5]
[361981120,1747921847590,-420.0,0.00032876,5]
[361981121,1747921847599,-1058.64,0.00032876,5]
[361981122,1747921847609,-420.0,0.00032876,5]
[361981123,1747921847619,-420.0,0.00032876,5]
[361981124,1747921847629,-492.57,0.00032876,5]
[361981125,1747921847639,-663.62,0.00032876,5]
[361981126,1747921847648,-420.0,0.00032876,5]
[361981127,1747921847658,-633.82,0.00032876,5]
[361981128,1747921847668,-792.04,0.00032876,5]
[361981129,1747921847678,-420.0,0.00032876,5]
[361981130,1747921847687,-779.61,0.00032876,5]
[361981131,1747921847697,-420.0,0.00032876,5]
[361981132,1747921847707,-420.0,0.00032876,5]
[361981133,1747921847721,-420.0,0.00032876,5]
[361981134,1747921847730,-776.0,0.00032876,5]
[361981135,1747921847740,-420.0,0.00032876,5]
[361981136,1747921847751,-420.0,0.00032876,5]
[361981137,1747921847761,-730.57,0.00032876,5]
[361981138,1747921847771,-420.0,0.00032876,5]
[361981139,1747921847784,-535.84,0.00032876,5]
[361981140,1747921847795,-833.14,0.00032876,5]
[361981141,1747921847806,-420.0,0.00032876,5]
[361981142,1747921847815,-841.5,0.00032876,5]
[361981143,1747921847825,-1149.21,0.00032876,5]
[361981144,1747921847834,-420.0,0.00032876,5]
[361981145,1747921847844,-726.34,0.00032876,5]
[361981146,1747921847853,-886.23,0.00032876,5]
[361981147,1747921847864,-479.53,0.00032876,5]
[361981148,1747921847873,-420.0,0.00032876,5]
[361981149,1747921847883,-160.59219265,0.00032876,5]
[361981150,1747921847893,-568.35,0.00032876,5]
[361981151,1747921847903,-420.0,0.00032876,5]
[361981152,1747921847912,-420.0,0.00032876,5]
[361981153,1747921847922,-420.0,0.00032876,5]
[361981154,1747921847931,-542.74,0.00032876,5]
[361981155,1747921847940,-657.43,0.00032876,5]
[361981156,1747921847950,-420.0,0.00032876,5]
[361981157,1747921847959,-420.17,0.00032876,5]
[361981158,1747921847968,-980.98,0.00032876,5]
[361981159,1747921847978,-595.5,0.00032876,5]
[361981160,1747921847987,-420.0,0.00032876,5]
[361981161,1747921847997,-420.0,0.00032876,5]
[361981162,1747921848006,-520.51,0.00032876,5]
[361981163,1747921848015,-420.0,0.00032876,5]
[361981164,1747921848025,-420.0,0.00032876,5]
[361981165,1747921848037,-654.08,0.00032876,5]
[361981166,1747921848047,-929.85,0.00032876,5]
[361981167,1747921848056,-945.06,0.00032876,5]
[361981168,1747921848066,-420.0,0.00032876,5]
[361981169,1747921848076,-885.04,0.00032876,5]
[361981170,1747921848085,-420.0,0.00032876,5]
[361981171,1747921848096,-446.11,0.00032876,5]
[361981172,1747921848105,-951.97,0.00032876,5]
[361981173,1747921848115,-420.0,0.00032876,5]
[361981174,1747921848125,-742.02,0.00032876,5]
[361981175,1747921848135,-433.6,0.00032876,5]
[361981176,1747921848145,-1021.72,0.00032876,5]
[361981177,1747921848156,-420.0,0.00032876,5]
[361981178,1747921848166,-747.95,0.00032876,5]
[361981179,1747921848176,-151.0,0.00032876,7]
[361981180,1747921848185,-151.0,0.00032876,7]
[361981181,1747921848195,-151.0,0.00032876,7]
[361981182,1747921848204,-728.32,0.00032876,5]
[361981183,1747921848214,-420.0,0.00032876,5]
[361981184,1747921848223,-845.89,0.00032876,5]
[361981185,1747921848233,-420.0,0.00032876,5]
[361981186,1747921848243,-719.93,0.00032876,5]
[361981187,1747921848252,-669.2,0.00032876,5]
[361981188,1747921848262,-706.25,0.00032876,5]
[361981189,1747921848271,-420.0,0.00032876,5]
[361981190,1747921848283,-786.34,0.00032876,5]
[361981191,1747921848293,-638.75,0.00032876,5]
[361981192,1747921848303,-420.0,0.00032876,5]
[361981193,1747921848312,-473.75,0.00032876,5]
[361981194,1747921848322,-737.95,0.00032876,5]
[361981195,1747921848331,-420.0,0.00032876,5]
[361981196,1747921848341,-868.45,0.00032876,5]
[361981197,1747921848351,-1135.16,0.00032876,5]
[361981198,1747921848361,-420.0,0.00032876,5]
[361981199,1747921848371,-471.35,0.00032876,5]
[361981200,1747921848380,-728.18,0.00032876,5]
[361981201,1747921848390,-420.0,0.00032876,5]
[361981202,1747921848405,-458.85,0.00032876,5]
[361981203,1747921848417,-420.0,0.00032876,5]
[361981204,1747921848433,-467.38,0.00032876,5]
[361981205,1747921848445,-549.06,0.00032876,5]
[361981206,1747921848457,-420.0,0.00032876,5]
[361981207,1747921848470,-420.0,0.00032876,5]
[361981208,1747921848481,-837.84,0.00032876,5]
[361981209,1747921848492,-1210.88,0.00032876,5]
[361981210,1747921848502,-518.36,0.00032876,5]
[361981211,1747921848511,-420.0,0.00032876,5]
[361981212,1747921848521,-420.0,0.00032876,5]
[361981213,1747921848534,-960.15,0.00032876,5]
[361981214,1747921848544,-420.0,0.00032876,5]
[361981215,1747921848553,-420.0,0.00032876,5]
[361981216,1747921848563,-420.0,0.00032876,5]
[361981217,1747921848573,-985.25,0.00032876,5]
[361981218,1747921848583,-420.0,0.00032876,5]
[361981219,1747921848592,-881.45,0.00032876,5]
[361981220,1747921848602,-420.0,0.00032876,5]
[361981221,1747921848612,-553.91,0.00032876,5]
[361981222,1747921848621,-648.17,0.00032876,5]
[361981223,1747921848631,-420.0,0.00032876,5]
[361981224,1747921848641,-809.72,0.00032876,5]
[361981225,1747921848652,-1001.88,0.00032876,5]
[361981226,1747921848663,-1854.99,0.00032876,5]
[361981227,1747921848672,-333.04131113,0.00032876,5]
[361981228,1747921848793,-212.68868887,0.00032876,5]
[361981229,1747921848805,-110.04130963,0.00032876,5]
[361981230,1747921848835,-309.95869037,0.00032876,5]
[361981231,1747921848845,-420.0,0.00032876,5]
[361981232,1747921848855,-1354.74,0.00032876,5]
[361981233,1747921848866,-675.64,0.00032876,5]
[361981234,1747921848876,-420.0,0.00032876,5]
[361981235,1747921848886,-1423.77,0.00032876,5]
[361981236,1747921848896,-420.0,0.00032876,5]
[361981237,1747921848905,-901.04,0.00032876,5]
[361981238,1747921848915,-529.13,0.00032876,5]
[361981239,1747921848925,-487.98,0.00032876,5]
[361981240,1747921848934,-420.0,0.00032876,5]
[361981241,1747921848943,-372.92933309,0.00032876,5]
[361981242,1747921848953,-605.44,0.00032876,5]
[361981243,1747921848964,-420.0,0.00032876,5]
[361981244,1747921848973,-420.0,0.00032876,5]
[361981245,1747921848983,-420.0,0.00032876,5]
[361981246,1747921848994,-690.16,0.00032876,5]
[361981247,1747921849003,-1043.81,0.00032876,5]
[361981248,1747921849012,-749.38,0.00032876,5]
[361981249,1747921849022,-1036.93,0.00032876,5]
[361981250,1747921849034,-635.49,0.00032876,5]
[361981251,1747921849043,-966.52,0.00032876,5]
[361981252,1747921849053,-420.0,0.00032876,5]
[361981253,1747921849063,-420.0,0.00032876,5]
[361981254,1747921849072,-1071.82,0.00032876,5]
[361981255,1747921849082,-1821.09,0.00032876,5]
[361981256,1747921849092,-420.0,0.00032876,5]
[361981257,1747921849101,-943.35,0.00032876,5]
[361981258,1747921849111,-570.25,0.00032876,5]
[361981259,1747921849120,-420.0,0.00032876,5]
[361981260,1747921849130,-230.57197654,0.00032876,5]
[361981261,1747921849611,-189.42802346,0.00032876,5]
[361981262,1747921849621,-420.0,0.00032876,10]
[361981263,1747921849630,-434.21231084,0.00032876,5]
[361981264,1747921849640,-2159.25,0.00032876,5]
[361981265,1747921849649,-829.57,0.00032876,5]
[361981266,1747921849658,-539.65,0.00032876,5]
[361981267,1747921849668,-636.85,0.00032876,5]
[361981268,1747921849677,-420.0,0.00032876,5]
[361981269,1747921849686,-1889.26,0.00032876,5]
[361981270,1747921849696,-420.0,0.00032876,5]
[361981271,1747921849706,-420.0,0.00032876,5]
[361981272,1747921849718,-358.0933405,0.00032876,5]
[361981273,1747921849727,-533.26,0.00032876,5]
[361981274,1747921849737,-420.0,0.00032876,5]
[361981275,1747921849747,-458.21,0.00032876,5]
[361981276,1747921849756,-998.31,0.00032876,5]
[361981277,1747921849766,-420.0,0.00032876,5]
[361981278,1747921849775,-420.0,0.00032876,5]
[361981279,1747921849788,-640.01,0.00032876,5]
[361981280,1747921849799,-420.0,0.00032876,5]
[361981281,1747921849809,-812.75,0.00032876,5]
[361981282,1747921849819,-420.0,0.00032876,5]
[361981283,1747921849828,-420.0,0.00032876,5]
[361981284,1747921849838,-975.9,0.00032876,5]
[361981285,1747921849847,-544.21,0.00032876,5]
[361981286,1747921849856,-896.0,0.00032876,5]
[361981287,1747921849866,-756.34,0.00032876,5]
[361981288,1747921849875,-566.68,0.00032876,5]
[361981289,1747921849884,-719.82,0.00032876,5]
[361981290,1747921849894,-1232.68,0.00032876,5]
[361981291,1747921849903,-420.0,0.00032876,5]
[361981292,1747921849912,-420.0,0.00032876,5]
[361981293,1747921849921,-421.44,0.00032876,5]
[361981294,1747921849931,-1053.95,0.00032876,5]
[361981295,1747921849940,-508.076515,0.00032876,7]
[361981296,1747921849950,-508.076515,0.00032876,7]
[361981297,1747921849959,-508.076515,0.00032876,7]
[361981298,1747921849968,-508.076515,0.00032876,7]
[361981299,1747921849977,-508.076515,0.00032876,7]
[361981300,1747921849987,-420.0,0.00032876,5]
[361981301,1747921849996,-609.89,0.00032876,5]
[361981302,1747921850005,-508.076515,0.00032876,7]
[361981303,1747921850014,-508.076515,0.00032876,7]
[361981304,1747921850024,-508.076515,0.00032876,7]
[361981305,1747921850034,-873.12,0.00032876,5]
[361981306,1747921850044,-508.076515,0.00032876,7]
[361981307,1747921850053,-508.076515,0.00032876,7]
[361981308,1747921850064,-452.32,0.00032876,5]
[361981309,1747921850074,-420.0,0.00032876,5]
[361981310,1747921850083,-420.0,0.00032876,5]
[361981311,1747921850092,-420.0,0.00032876,5]
[361981312,1747921850101,-652.41,0.00032876,5]
[361981313,1747921850110,-739.98,0.00032876,5]
[361981314,1747921850119,-474.64,0.00032876,5]
[361981315,1747921850129,-422.74,0.00032876,5]
[361981316,1747921850139,-420.0,0.00032876,5]
[361981317,1747921850149,-422.08044556,0.00032876,5]
[361981318,1747921850158,-420.0,0.00032876,5]
[361981319,1747921850167,-858.99,0.00032876,5]
[361981320,1747921850176,-973.68,0.00032876,5]
[361981321,1747921850185,-420.0,0.00032876,5]
[361981322,1747921850195,-420.0,0.00032876,5]
[361981323,1747921850204,-215.23663568,0.00032876,5]
[361981324,1747921850213,-553.82308807,0.00032876,5]
[361981325,1747921850222,-486.78,0.00032876,5]
[361981326,1747921850231,-420.0,0.00032876,5]
[361981327,1747921850241,-420.0,0.00032876,5]
[361981328,1747921850250,-694.84,0.00032876,5]
[361981329,1747921850259,-793.35,0.00032876,5]
[361981330,1747921850268,-705.64,0.00032876,5]
[361981331,1747921850278,-483.58,0.00032876,5]
[361981332,1747921850289,-420.0,0.00032876,5]
[361981333,1747921850298,-196.00190245,0.00032876,5]
[361981334,1747921850307,-926.75,0.00032876,5]
[361981335,1747921850317,-420.0,0.00032876,5]
[361981336,1747921850326,-420.0,0.00032876,5]
[361981337,1747921850335,-420.0,0.00032876,5]
[361981338,1747921850344,-421.95,0.00032876,5]
[361981339,1747921850353,-835.93,0.00032876,5]
[361981340,1747921850362,-577.65,0.00032876,5]
[361981341,1747921850372,-420.0,0.00032876,5]
[361981342,1747921850381,-420.0,0.00032876,5]
[361981343,1747921850390,-420.0,0.00032876,5]
[361981344,1747921850399,-774.55,0.00032876,5]
[361981345,1747921850408,-420.0,0.00032876,5]
[361981346,1747921850418,-819.13,0.00032876,5]
[361981347,1747921850426,-462.44,0.00032876,5]
[361981348,1747921850435,-420.0,0.00032876,5]
[361981349,1747921850444,-420.0,0.00032876,5]
[361981350,1747921850454,-420.0,0.00032876,5]
[361981351,1747921850463,-420.0,0.00032876,5]
[361981352,1747921850472,-466.0,0.00032876,5]
[361981353,1747921850481,-420.0,0.00032876,5]
[361981354,1747921850490,-420.0,0.00032876,5]
[361981355,1747921850499,-420.0,0.00032876,5]
[361981356,1747921850508,-420.0,0.00032876,5]
[361981357,1747921850517,-1034.43,0.00032876,5]
[361981358,1747921850526,-420.0,0.00032876,5]
[361981359,1747921850538,-594.42,0.00032876,5]
[361981360,1747921850547,-420.0,0.00032876,5]
[361981361,1747921850556,-420.0,0.00032876,5]
[361981362,1747921850566,-420.0,0.00032876,5]
[361981363,1747921850576,-1134.08,0.00032876,5]
[361981364,1747921850585,-420.0,0.00032876,5]
[361981365,1747921850595,-1626.05,0.00032876,5]
[361981366,1747921850604,-420.0,0.00032876,5]
[361981367,1747921850613,-1195.83,0.00032876,5]
[361981368,1747921850622,-474.18,0.00032876,5]
[361981369,1747921850632,-555.15,0.00032876,5]
[361981370,1747921850641,-420.0,0.00032876,5]
[361981371,1747921850650,-455.69,0.00032876,5]
[361981372,1747921850659,-420.0,0.00032876,5]
[361981373,1747921850669,-491.77,0.00032876,5]
[361981374,1747921850678,-561.45,0.00032876,5]
[361981375,1747921850687,-596.84,0.00032876,5]
[361981376,1747921850697,-420.0,0.00032876,5]
[361981377,1747921850707,-805.23,0.00032876,5]
[361981378,1747921850717,-2224.46,0.00032876,5]
[361981379,1747921850729,-607.99,0.00032876,5]
[361981380,1747921850738,-420.0,0.00032876,5]
[361981381,1747921850748,-420.0,0.00032876,5]
[361981382,1747921850759,-420.0,0.00032876,5]
[361981383,1747921850768,-420.0,0.00032876,5]
[361981384,1747921850778,-742.08,0.00032876,5]
[361981385,1747921850787,-533.96116962,0.00032876,5]
[361981386,1747921850798,-510.13,0.00032876,5]
[361981387,1747921850807,-543.4,0.00032876,5]
[361981388,1747921850817,-420.0,0.00032876,5]
[361981389,1747921850827,-420.0,0.00032876,5]
[361981390,1747921850836,-708.21,0.00032876,5]
[361981391,1747921850845,-629.06,0.00032876,5]
[361981392,1747921850854,-420.0,0.00032876,5]
[361981393,1747921850864,-932.05,0.00032876,5]
[361981394,1747921850874,-859.8,0.00032876,5]
[361981395,1747921850884,-420.0,0.00032876,5]
[361981396,1747921850893,-1187.9,0.00032876,5]
[361981397,1747921850902,-869.55,0.00032876,5]
[361981398,1747921850911,-813.42,0.00032876,5]
[361981399,1747921850921,-420.0,0.00032876,5]
[361981400,1747921850930,-762.08,0.00032876,5]
[361981401,1747921850940,-420.0,0.00032876,5]
[361981402,1747921850949,-420.0,0.00032876,5]
[361981403,1747921850958,-339.51034749,0.00032876,5]
[361981404,1747921850967,-420.0,0.00032876,5]
[361981405,1747921850977,-777.48,0.00032876,5]
[361981406,1747921850986,-2000.0,0.00032876,5]
[361981407,1747921850995,-420.0,0.00032876,5]
[361981408,1747921851005,-714.38,0.00032876,5]
[361981409,1747921851014,-420.0,0.00032876,5]
[361981410,1747921851023,-1117.45,0.00032876,5]
[361981411,1747921851033,-1091.42,0.00032876,5]
[361981412,1747921851042,-420.0,0.00032876,5]
[361981413,1747921851052,-712.41,0.00032876,5]
[361981414,1747921851061,-974.47,0.00032876,5]
[361981415,1747921851070,-420.0,0.00032876,5]
[361981416,1747921851079,-420.0,0.00032876,5]
[361981417,1747921851088,-759.77,0.00032876,5]
[361981418,1747921851097,-424.02,0.00032876,5]
[361981419,1747921851107,-420.0,0.00032876,5]
[361981420,1747921851116,-420.0,0.00032876,5]
[361981421,1747921851125,-420.0,0.00032876,5]
[361981422,1747921851134,-420.0,0.00032876,5]
[361981423,1747921851143,-420.0,0.00032876,5]
[361981424,1747921851152,-420.0,0.00032876,5]
[361981425,1747921851162,-420.0,0.00032876,5]
[361981426,1747921851171,-420.0,0.00032876,5]
[361981427,1747921851180,-420.0,0.00032876,5]